{"text_format":"3","workbook":"xlsx","n_sheets":2,"sheets":["Game Hub","Battle"],"not_rendered":{"images":3,"macros":1},"read":"whole","date_system":"1900"}

{"sheet":"Game Hub","index":0,"n_rows":23,"n_cols":27,"rows_kept":23,"merged":[[2,21,2,26]]}
[]
[null,null,1,{"$f":"C2+1","v":2},{"$f":"D2+1","v":3},4,5,6,7,8,9,10,11,12,13,null,"Key"]
[null,1,{"$nulls":15},"Town",{"$nulls":3},"Towns/ Quests"]
[null,{"$f":"B3+1","v":2},{"$nulls":15},"Wilderness",{"$nulls":3},1,2,3,4,5,6]
[null,{"$f":"B4+1","v":3},{"$nulls":15},"Farmland",null,null,"D8","There are no bananas here remember…","Your family is pleased to get bananas - but are now hungry for apples","There are no apples here, remember","Your family is pleased to get apples. Now you can finally go surfing in the East.","You want to surf in the east remember","You head to bed exhausted, well done on completing your adventure!"]
[null,4,{"$nulls":15},"Water",null,null,"I9","You found 5 bananas - take them back home","Take the bananas home","There are no apples here","Take the apples home","There is no water here - keep searching for the east coast.","You are too tired for this, time to get home to bed"]
[null,5,{"$nulls":18},"I13","There are no bananas here, try another town","Take the bananas home","There are no apples here","Take the apples home","There is no water here - keep searching for the east coast.","You are too tired for this, time to get home to bed"]
[null,6,{"$nulls":15},"Player Health","Maximum",null,"J5","There are no bananas here, try another town","Take the bananas home","There are no apples here","Take the apples home","There is no water here - keep searching for the east coast.","You are too tired for this, time to get home to bed"]
[null,7,{"$nulls":15},12,12,null,"M9","There are no bananas here, try another town","Take the bananas home","You found 5 apples, quickly take them home","Take the apples home","You have a great time surfing, time to head home to bed.","You are too tired for this, time to get home to bed"]
[null,8,{"$nulls":18},"Trigger Locations","I9","D8","M9","D8","M9","D8"]
[null,9,{"$nulls":15},"Game State"]
[null,10,{"$nulls":15},1,"(Reset every spawn)"]
[null,11]
[null,12,{"$nulls":15},"Player Location"]
[null,{"$f":"B14+1","v":13},{"$nulls":15},"I13"]
[]
[{"$nulls":17},"Battle Mode"]
[{"$nulls":17},"Y or N"]
[]
[]
[]
[]
[null,null,"Mum wants you to find some banana's!"]

{"sheet":"Battle","index":1,"n_rows":12,"n_cols":15,"rows_kept":12,"hidden":true}
[]
[null,null,"Enemy",{"$nulls":10},"Enemy 1","Enemy 2"]
[null,"Name","Ghost",{"$nulls":9},"Name","Ghost","Banjo"]
[null,"Image",{"$error":"#VALUE!"},{"$nulls":10},{"$error":"#VALUE!"},{"$error":"#VALUE!"}]
[null,"Health",0,{"$nulls":9},"Health",3,4]
[null,"Next Turn","Enemy"]
[null,null,"Player"]
[null,"Image",{"$error":"#VALUE!"}]
[null,"Health",{"$f":"'Game Hub'!R9","v":12}]
[]
[]
[null,"Next Turn"]